bitfinex-derivatives/quotes_ETHF0:USTF0_20250626
["timestamp","ask_amount","ask_price","bid_price","bid_amount"]
[1750954497862,0.82259,2430.3,2430.2,9.8698]
[1750954498058,2.29139,2430.3,2430.2,9.8698]
[1750954498258,2.29139,2430.3,2430.2,6.662]
[1750954500164,3.52531,2430.3,2429.5,6.62836142]
[1750954500361,3.2078,2430.2,2429.7,3.42056142]
[1750954500666,0.82273,2429.9,2429.8,0.82276]
[1750954500962,4.5446,2430.2,2429.6,6.661]
[1750954500963,3.42056142,2430.0,2429.6,6.661]
[1750954501263,6.93928142,2429.8,2429.1,6.661]
[1750954501460,0.82281,2429.7,2429.6,3.42056142]
[1750954502070,0.82283,2429.6,2429.5,6.661]
[1750954502569,2.28458,2429.8,2429.5,6.661]
[1750954502768,2.28458,2429.8,2429.6,3.42056142]
[1750954502961,2.28458,2429.8,2429.6,4.24337142]
[1750954503163,2.28458,2429.8,2429.7,0.8228]
[1750954503361,3.2078,2430.0,2429.9,0.82273]
[1750954503664,3.2078,2430.0,2429.9,10.90429142]
[1750954503860,4.0305,2430.0,2429.9,10.08156142]
[1750954504259,3.2078,2430.0,2429.9,10.90429142]
[1750954505569,4.0305,2430.0,2429.9,10.08156142]
[1750954506168,4.0305,2430.0,2429.9,10.90429142]
[1750954506474,4.0305,2430.0,2429.9,10.08156142]
[1750954506772,3.2078,2430.0,2429.8,6.661]
[1750954506966,2.29063,2429.9,2429.8,6.661]
[1750954507568,1.4679,2429.9,2429.5,3.42056142]
[1750954507869,0.8228,2429.7,2429.6,6.661]
[1750954508075,4.0306,2429.7,2429.6,6.661]
[1750954508373,0.8229,2429.4,2429.3,6.661]
[1750954509974,0.8229,2429.4,2429.3,7.48393]
[1750954510465,0.8229,2429.4,2429.3,6.661]
[1750954510873,0.8229,2429.4,2429.3,7.48393]
[1750954511675,0.82288,2429.5,2429.4,0.82289]
[1750954512466,0.82288,2429.5,2429.3,7.48391]
[1750954513175,0.82288,2429.5,2429.4,0.8229]
[1750954513370,0.8229,2429.4,2429.3,6.661]
[1750954514877,0.82299,2429.2,2429.1,0.82299]
[1750954515176,0.82299,2429.2,2429.1,6.662]
[1750954517684,3.2078,2429.4,2429.1,6.662]
[1750954517978,0.82295,2429.3,2429.2,0.82295]
[1750954518186,0.82297,2429.2,2429.1,7.48498]
[1750954518981,0.82297,2429.2,2429.1,6.662]
[1750954519889,0.82307,2428.9,2428.8,6.65]
[1750954520983,0.82307,2428.9,2428.8,7.4731]
[1750954521278,0.82307,2428.9,2428.8,6.65]
[1750954522683,0.82307,2428.9,2428.8,7.4731]
[1750954522877,0.82307,2428.9,2428.8,6.65]
[1750954523582,0.82307,2428.9,2428.8,7.4731]
[1750954523779,0.82307,2428.9,2428.8,6.65]
[1750954523972,2.7389,2429.0,2428.6,3.2078]
[1750954524177,0.82314,2428.7,2428.6,9.8578]
[1750954525376,0.82314,2428.7,2428.6,10.68097]
[1750954526083,0.82314,2428.7,2428.6,9.8578]
[1750954527092,0.82324,2428.4,2428.3,1.3976]
[1750954527287,2.0579,2428.7,2428.0,4.03117]
[1750954527288,0.82334,2428.1,2428.0,4.03117]
[1750954527482,3.9317,2428.6,2428.0,3.2078]
[1750954527794,0.82324,2428.4,2428.3,0.82325]
[1750954528093,0.82327,2428.3,2428.2,0.82328]
[1750954528288,0.82327,2428.3,2428.1,1.3288]
[1750954528289,0.82327,2428.3,2428.1,2.15212]
[1750954528488,0.82327,2428.3,2428.2,7.47331]
[1750954528692,0.82326,2428.4,2428.2,8.80211]
[1750954529393,0.82326,2428.4,2428.3,0.82327]
[1750954529892,0.82327,2428.3,2428.2,8.80208]
[1750954530195,0.82326,2428.4,2428.3,0.82327]
[1750954531297,0.82327,2428.3,2428.2,7.9788]
[1750954531699,3.9317,2428.6,2428.3,0.82327]
[1750954531994,0.82324,2428.4,2428.3,0.82327]
[1750954532695,0.82322,2428.5,2428.4,0.82322]
[1750954533594,0.7255,2428.8,2428.7,0.82314]
[1750954533795,1.6862223,2428.8,2428.6,0.82317]
[1750954534091,3.45289,2428.8,2428.3,3.2078]
[1750954534299,0.82324,2428.4,2428.3,9.8598]
[1750954535596,0.82324,2428.4,2428.3,6.652]
[1750954536491,0.82315,2428.7,2428.6,0.82315]
[1750954536693,2.21823,2428.8,2428.7,0.82314]
[1750954536992,3.17928818,2428.8,2428.7,2.15934]
[1750954537194,2.21823,2428.8,2428.7,2.15934]
[1750954537396,0.96135735,2428.8,2428.7,2.15934]
[1750954537699,0.82308,2428.9,2428.8,0.8231]
[1750954538100,1.78442648,2428.9,2428.8,0.8231]
[1750954538988,1.78442648,2428.9,2428.8,2.2431]
[1750954539799,1.78442648,2428.9,2428.8,1.42]
[1750954540301,1.78442648,2428.9,2428.4,0.8948]
[1750954540302,0.82314,2428.7,2428.6,7.47516]
[1750954540502,0.82313,2428.8,2428.7,0.82313]
[1750954541002,0.82313,2428.8,2428.7,2.24313]
[1750954542495,0.82313,2428.8,2428.7,1.42]
[1750954543503,0.82314,2428.7,2428.6,6.652]
[1750954544394,0.82314,2428.7,2428.6,7.47517]
[1750954544596,0.82314,2428.7,2428.6,8.94267]
[1750954544996,0.82314,2428.7,2428.6,8.1195]
[1750954545600,0.82314,2428.7,2428.6,8.94267]
[1750954546002,0.82314,2428.7,2428.6,8.1195]
[1750954546594,0.82314,2428.7,2428.6,8.94267]
[1750954547302,0.82309,2428.9,2428.8,0.82308]
[1750954547506,0.96261017,2429.0,2428.8,6.62541381]
[1750954547703,0.82303,2429.0,2428.9,4.88511381]
[1750954547891,0.96256037,2429.0,2428.9,5.70815381]
[1750954550405,0.96256037,2429.0,2428.9,5.90545381]
[1750954551401,2.44382738,2429.6,2429.0,2.05751]
[1750954551606,3.40399213,2429.7,2429.5,3.41761381]
[1750954551807,0.8229,2429.4,2429.3,3.2078]
[1750954552004,0.82292,2429.4,2429.3,0.82292]
[1750954552206,0.96011403,2429.4,2429.1,12.21471381]
[1750954552517,0.96011403,2429.4,2429.3,4.24054381]
[1750954553403,0.95991791,2429.4,2429.3,5.88604381]
[1750954554210,0.95991791,2429.4,2429.3,10.88604381]
[1750954555511,4.72209,2429.8,2429.7,0.8228]
[1750954555707,5.68147869,2429.8,2429.7,0.8228]
[1750954556414,4.85868869,2429.8,2429.7,0.8228]
[1750954556710,4.85868869,2429.8,2429.7,2.2887]
[1750954556910,1.65088869,2429.8,2429.7,2.2887]
[1750954557513,0.8228,2429.7,2429.6,10.88241381]
[1750954559016,0.8228,2429.7,2429.6,10.05961381]
[1750954559314,0.8228,2429.7,2429.6,10.88244381]
[1750954559606,0.8228,2429.7,2429.6,10.05961381]
[1750954559806,0.6915,2429.8,2429.7,0.8228]
[1750954560007,2.47154288,2429.8,2429.7,0.8228]
[1750954560207,1.64878288,2429.8,2429.7,0.8228]
[1750954560598,2.47154288,2429.8,2429.7,0.8228]
[1750954561001,0.95728288,2429.8,2429.7,0.8228]
[1750954561201,0.82274,2429.9,2429.8,0.82275]
[1750954561411,1.77944527,2429.9,2429.8,4.24036381]
[1750954561906,1.77944527,2429.9,2429.8,3.41761381]
[1750954562109,1.77944527,2429.9,2429.8,4.24037381]
[1750954562305,0.82274,2429.9,2429.8,4.24037381]
[1750954562509,4.72139,2430.1,2430.0,0.8227]
[1750954562715,5.67787036,2430.1,2430.0,4.24031381]
[1750954563414,5.67784036,2430.1,2430.0,4.24031381]
[1750954563812,5.67784036,2430.1,2430.0,10.88131381]
[1750954564017,3.8987,2430.1,2430.0,10.88131381]
[1750954564211,4.72136,2430.1,2430.0,10.88131381]
[1750954564917,0.6909,2430.1,2430.0,10.88131381]
[1750954565718,0.6909,2430.1,2430.0,12.22191381]
[1750954565916,0.82255,2430.5,2430.4,0.82255]
[1750954566317,0.82256,2430.4,2430.3,0.82257]
[1750954566513,1.77828122,2430.4,2430.3,0.82257]
[1750954566720,0.82259,2430.3,2430.2,7.44802381]
[1750954566911,3.2078,2430.4,2430.2,6.64]
[1750954567112,0.9556601,2430.3,2430.2,6.64]
[1750954567319,1.3935,2430.6,2430.5,0.82253]
[1750954567514,0.95529382,2430.6,2430.5,7.44794381]
[1750954567714,0.82244,2430.8,2430.5,6.62541381]
[1750954568025,0.82244,2430.8,2430.6,7.46249]
[1750954568326,0.82243,2430.8,2430.7,0.82246]
[1750954568621,0.82241,2430.9,2430.8,0.82243]
[1750954568922,0.95482128,2430.9,2430.8,0.82243]
[1750954569417,4.03007,2431.3,2430.8,3.41761381]
[1750954569623,3.2078,2431.3,2431.2,0.82229]
[1750954569824,4.16199534,2431.3,2431.2,0.82229]
[1750954570423,3.2078,2431.3,2431.2,2.25519]
[1750954570726,0.82217,2431.6,2431.3,0.82223]
[1750954570910,0.95349859,2431.5,2431.4,0.82222]
[1750954571114,0.82214,2431.7,2431.4,10.66902]
[1750954571315,1.4295,2431.9,2431.4,10.66902]
[1750954571316,0.82216,2431.6,2431.4,10.66902]
[1750954571521,0.82219,2431.5,2431.4,9.8468]
[1750954572620,0.82214,2431.7,2431.4,10.66902]
[1750954572821,0.82215,2431.6,2431.5,0.82219]
[1750954573123,0.82214,2431.7,2431.5,0.82219]
[1750954573526,0.82215,2431.6,2431.4,12.1252]
[1750954573722,0.82219,2431.5,2431.4,11.303]
[1750954574132,0.82219,2431.5,2431.4,9.8468]
[1750954574422,0.82219,2431.5,2431.4,3.2078]
[1750954574628,0.82219,2431.5,2430.9,9.8458]
[1750954574629,0.82236,2431.0,2430.9,9.8458]
[1750954574925,0.82231,2431.2,2431.0,0.82236]
[1750954575121,0.82229,2431.2,2431.1,0.82232]
[1750954575322,0.6789,2431.3,2430.9,16.29329791]
[1750954575515,3.2078,2431.6,2431.0,1.3464]
[1750954575717,0.82225,2431.4,2431.2,0.82227]
[1750954575915,0.82225,2431.4,2431.3,6.638]
[1750954577725,0.82225,2431.4,2431.3,7.46026]
[1750954578427,0.82225,2431.4,2431.3,6.638]
[1750954579027,0.82221,2431.5,2431.3,7.46026]
[1750954579219,3.2078,2431.6,2431.3,6.638]
[1750954579620,0.8222,2431.5,2431.4,0.82222]
[1750954580017,0.82222,2431.4,2431.3,7.46023]
[1750954580229,0.82221,2431.5,2431.4,0.82222]
[1750954580628,0.82221,2431.5,2431.3,7.46023]
[1750954581029,0.82222,2431.4,2431.3,7.46023]
[1750954581324,0.82219,2431.5,2431.3,7.46023]
[1750954581529,0.6789,2431.7,2431.4,0.82222]
[1750954582031,0.82226,2431.3,2431.2,3.2078]
[1750954582230,0.82226,2431.3,2431.2,6.628]
[1750954582538,0.82237,2431.0,2430.9,0.82237]
[1750954582828,0.82237,2431.0,2430.9,7.45037]
[1750954583226,0.82237,2431.0,2430.8,3.2078]
[1750954583431,0.82246,2430.7,2430.6,56.019]
[1750954583730,0.82245,2430.8,2430.7,0.82246]
[1750954583929,0.82246,2430.7,2430.6,7.45048]
[1750954584525,0.6678,2430.9,2430.6,6.628]
[1750954584724,0.82246,2430.8,2430.6,7.45046]
[1750954584919,0.82246,2430.8,2430.7,0.82246]
[1750954585428,0.82246,2430.8,2430.7,4.03026]
[1750954586431,0.82246,2430.8,2430.7,3.2078]
[1750954586632,1.53536,2430.8,2430.7,3.2078]
[1750954588932,1.53536,2430.8,2430.5,0.8225]
[1750954588933,0.82249,2430.6,2430.5,7.4505]
[1750954589326,0.82249,2430.6,2430.5,6.628]
[1750954592730,1.77970073,2430.6,2430.5,6.628]
[1750954593935,2.05633,2430.5,2430.1,3.2078]
[1750954594140,0.82263,2430.2,2430.1,9.8358]
[1750954595634,0.82263,2430.2,2430.1,6.628]
[1750954595833,1.78105055,2430.2,2430.1,6.628]
[1750954596239,1.78105055,2430.2,2429.8,3.2078]
[1750954596240,0.82273,2429.9,2429.8,3.2078]
[1750954596441,0.82283,2429.6,2429.5,4.03065]
[1750954596636,0.82283,2429.6,2429.5,10.65965]
[1750954597735,0.82283,2429.6,2429.5,9.8368]
[1750954597935,0.82281,2429.7,2429.6,0.82282]
[1750954598343,0.82283,2429.6,2429.5,10.65964]
[1750954598944,0.82282,2429.7,2429.5,10.65964]
[1750954599146,0.82283,2429.6,2429.5,10.65964]
[1750954599442,0.82282,2429.7,2429.6,0.82283]
[1750954600038,0.82283,2429.6,2429.5,10.65965]
[1750954601145,0.82283,2429.6,2429.5,9.8368]
[1750954601344,0.82283,2429.6,2429.5,6.629]
[1750954603647,0.8229,2429.4,2429.3,6.63]
[1750954603847,0.82297,2429.2,2429.1,3.2078]
[1750954604042,0.82303,2429.0,2428.9,6.63]
[1750954604247,0.82307,2428.9,2428.8,3.2078]
[1750954604548,0.82314,2428.7,2428.6,6.63]
[1750954604743,0.82313,2428.8,2428.7,0.82314]
[1750954604937,2.72578,2429.1,2428.6,6.63]
[1750954604938,0.82314,2428.7,2428.6,6.63]
[1750954606945,0.8232,2428.5,2428.4,3.2078]
[1750954607254,0.82334,2428.1,2428.0,8.36055569]
[1750954607442,0.82344,2427.8,2427.7,3.2078]
[1750954607638,0.82341,2427.9,2427.7,3.2078]
[1750954608044,0.82351,2427.6,2427.5,6.632]
[1750954608247,0.7113,2427.8,2427.2,6.632]
[1750954608450,3.2078,2427.7,2427.2,6.632]
[1750954608653,0.82361,2427.3,2427.2,6.632]
[1750954609547,0.8236,2427.4,2427.2,6.632]
[1750954609844,5.2898,2427.7,2427.2,6.632]
[1750954609845,0.82361,2427.3,2427.2,6.632]
[1750954610348,0.82359,2427.4,2427.2,7.45565]
[1750954610557,4.7044,2427.7,2427.3,6.44749791]
[1750954610849,3.2078,2427.7,2427.6,7.27100791]
[1750954611051,4.03129,2427.7,2427.6,6.633]
[1750954611247,3.2078,2427.7,2427.6,7.45651]
[1750954611452,0.708,2428.0,2427.6,6.633]
[1750954611652,0.82348,2427.7,2427.6,6.633]
[1750954611953,0.708,2428.0,2427.4,9.8338]
[1750954612153,0.82353,2427.6,2427.4,10.65738]
[1750954612353,0.8235,2427.7,2427.5,0.82354]
[1750954613157,1.3924,2427.9,2427.6,0.82351]
[1750954613364,1.3924,2427.9,2427.4,9.8338]
[1750954613365,0.82343,2427.9,2427.4,9.8338]
[1750954613659,0.82344,2427.8,2427.6,0.82349]
[1750954613859,0.82351,2427.6,2427.5,1.3941]
[1750954615351,0.82354,2427.5,2427.4,9.8338]
[1750954615558,0.82354,2427.5,2427.4,11.2247]
[1750954615950,0.82354,2427.5,2427.4,12.04828]
[1750954616151,0.82354,2427.5,2427.4,3.2078]
[1750954616459,0.82361,2427.3,2427.2,6.628]
[1750954617257,0.82365,2427.2,2427.1,1.3909]
[1750954617452,0.6962,2427.4,2426.9,56.023]
[1750954617657,0.82368,2427.1,2427.0,1.3909]
[1750954621163,8.50661791,2427.3,2426.8,3.2078]
[1750954621457,3.2078,2426.9,2426.4,3.2078]
[1750954621657,0.82387,2426.6,2426.5,1.3411]
[1750954621862,0.82387,2426.6,2426.5,2.16498]
[1750954622163,0.82387,2426.6,2426.5,1.3411]
[1750954623056,2.77031,2426.8,2426.3,0.82394]
[1750954623255,0.82392,2426.4,2426.3,1.3411]
[1750954623553,0.82392,2426.4,2426.3,2.16505]
[1750954624056,2.0596,2426.7,2426.2,6.629]
[1750954624259,0.82405,2426.0,2425.8,3.2078]
[1750954624562,0.82403,2426.1,2425.9,0.82407]
[1750954624862,0.82405,2426.0,2425.9,1.419]
[1750954625058,0.82404,2426.1,2425.9,2.24309]
[1750954625258,0.82405,2426.0,2425.9,2.24309]
[1750954625458,0.82405,2426.0,2425.9,1.419]
[1750954625662,0.82409,2425.9,2425.8,3.2078]
[1750954625853,0.82409,2425.9,2425.8,4.03192]
[1750954626056,0.82407,2426.0,2425.8,4.03192]
[1750954626256,0.7301,2426.2,2425.8,4.03191]
[1750954626464,0.82403,2426.1,2425.8,3.2078]
[1750954626665,1.55411,2426.2,2426.0,0.82405]
[1750954626966,1.5541,2426.2,2425.8,4.6268]
[1750954627356,0.7301,2426.2,2426.0,0.82402]
[1750954627564,0.7301,2426.2,2426.1,1.3299]
[1750954627858,3.2078,2427.0,2426.1,4.5377]
[1750954628059,1.3934,2426.9,2426.4,3.2078]
[1750954628258,0.82379,2426.8,2426.5,1.3299]
[1750954628459,1.3934,2426.9,2426.6,0.82383]
[1750954628861,1.3934,2426.9,2426.1,3.2078]
[1750954628862,0.82393,2426.4,2426.1,3.2078]
[1750954629056,2.05954,2426.7,2426.2,7.45598]
[1750954629268,0.82394,2426.4,2426.2,8.78588]
[1750954629569,3.2078,2426.7,2426.2,14.40939791]
[1750954629766,0.8239,2426.5,2426.4,0.82391]
[1750954630067,3.2078,2426.7,2426.5,0.82386]
[1750954630264,1.3934,2426.9,2426.5,0.82385]
[1750954630463,0.82384,2426.7,2426.6,0.82384]
[1750954630663,0.82384,2426.7,2426.5,1.4596]
[1750954630866,0.82385,2426.6,2426.5,1.4596]
[1750954631061,0.82388,2426.5,2426.4,3.2078]
[1750954631262,0.82388,2426.5,2426.4,4.6674]
[1750954631461,0.82387,2426.6,2426.4,4.6674]
[1750954631668,0.82385,2426.6,2426.5,0.82386]
[1750954631868,0.82385,2426.6,2426.5,1.4596]
[1750954632466,0.82385,2426.6,2426.5,2.28348]
[1750954632669,0.82384,2426.7,2426.6,0.82385]
[1750954632972,1.77850534,2426.7,2426.6,2.28345]
[1750954633273,1.77850534,2426.7,2426.6,1.4596]
[1750954634068,2.44382738,2427.7,2426.8,2.05945]
[1750954634372,2.44382738,2427.7,2427.3,3.2078]
[1750954634568,5.45780887,2427.6,2426.9,11.10859791]
[1750954634772,0.82369,2427.1,2427.0,6.633]
[1750954634975,1.77880149,2427.4,2427.0,8.0863]
[1750954635271,3.39902887,2427.5,2427.2,9.65529791]
[1750954635467,3.39902887,2427.5,2427.4,0.82358]
[1750954635468,0.95520149,2427.5,2427.4,0.82358]
[1750954635771,0.95520149,2427.5,2427.2,3.2078]
[1750954635974,0.82361,2427.3,2427.2,4.03143]
[1750954636274,0.82361,2427.3,2427.2,5.40003]
[1750954636474,2.0587,2427.7,2427.2,5.40003]
[1750954636672,0.82361,2427.4,2427.3,2.19221]
[1750954637274,1.78195869,2427.4,2427.3,1.3686]
[1750954637676,0.82361,2427.3,2427.2,3.2078]
[1750954637973,0.82365,2427.2,2427.1,6.632]
[1750954638274,0.82371,2427.0,2426.9,3.2078]
[1750954638479,0.82375,2426.9,2426.8,6.632]
[1750954639270,0.82381,2426.8,2426.7,6.632]
[1750954639475,0.82377,2426.9,2426.7,7.9991]
[1750954639770,0.82377,2426.9,2426.8,1.3671]
[1750954640077,1.78277875,2426.9,2426.8,1.3671]
[1750954640480,0.7198,2427.3,2426.8,1.3671]
[1750954640679,0.82356,2427.5,2427.4,0.82358]
[1750954640979,0.95490643,2427.6,2427.5,0.82354]
[1750954641177,0.95490336,2427.6,2427.5,0.82354]
[1750954641479,0.95490336,2427.6,2427.5,2.19064]
[1750954642478,0.95490336,2427.6,2427.5,4.5749]
[1750954642682,1.77841336,2427.6,2427.5,11.2749]
[1750954644387,1.77841336,2427.6,2427.5,12.09844]
[1750954644689,1.77841336,2427.6,2427.5,3.2078]
[1750954644991,1.77841336,2427.6,2427.5,9.9078]
[1750954645384,0.95490336,2427.6,2427.5,10.73134]
[1750954645688,1.3947,2427.9,2427.5,9.9078]
[1750954645878,0.95516568,2427.8,2427.5,9.9078]
[1750954646085,0.82351,2427.6,2427.5,9.9078]
[1750954646277,1.77867568,2427.6,2427.5,3.2078]
[1750954646690,1.77867568,2427.6,2427.5,9.9068]
[1750954647287,1.77867568,2427.6,2427.5,3.2078]
[1750954647487,1.77867568,2427.6,2427.5,6.699]
[1750954648391,0.82351,2427.6,2427.5,6.699]
[1750954648996,0.82358,2427.4,2427.3,8.97639]
[1750954649797,7.99946,2427.9,2427.3,8.1528]
[1750954649998,0.95426969,2427.8,2427.7,0.82348]
[1750954650388,0.82348,2427.7,2427.6,0.82348]
[1750954650589,1.77774969,2427.7,2427.6,0.82348]
[1750954651198,0.95426969,2427.7,2427.6,0.82348]
[1750954651500,5.42591,2427.9,2427.8,0.82344]
[1750954651693,0.82345,2427.8,2427.7,7.52245]
[1750954652091,1.77710354,2427.8,2427.7,7.52245]
[1750954652292,0.82344,2427.8,2427.7,7.52245]
[1750954652601,5.42593,2427.9,2427.8,0.82344]
[1750954652897,6.37942375,2427.9,2427.8,0.82344]
[1750954653591,4.16129375,2427.9,2427.8,0.82344]
[1750954653794,0.6871,2428.3,2427.9,2.05848]
[1750954653996,3.2078,2428.4,2428.3,0.82327]
[1750954654198,4.16098767,2428.4,2428.3,0.82327]
[1750954654407,0.95318767,2428.4,2428.3,2.26187]
[1750954655193,0.82315,2428.7,2428.3,1.4386]
[1750954655392,0.95276624,2428.6,2428.5,0.8232]
[1750954655595,3.8949,2428.8,2428.5,0.8232]
[1750954655796,0.95212235,2428.7,2428.5,0.8232]
[1750954656094,3.8949,2428.8,2428.3,1.4386]
[1750954656294,1.51022,2428.8,2428.6,0.82316]
[1750954656495,0.6871,2428.8,2428.7,0.82314]
[1750954656796,1.63886667,2428.8,2428.7,0.82314]
[1750954657002,0.673,2429.0,2428.6,14.56679791]
[1750954657195,1.77479281,2428.9,2428.6,17.77459791]
[1750954657393,0.82309,2428.9,2428.7,0.82314]
[1750954657600,0.673,2429.0,2428.7,0.82314]
[1750954657906,1.49605,2429.0,2428.6,17.77459791]
[1750954658097,0.673,2429.0,2428.9,3.2078]
[1750954658400,1.49604,2429.0,2428.9,3.2078]
[1750954658602,2.44741523,2429.0,2428.9,4.03087]
[1750954659003,2.44741523,2429.0,2428.9,3.2078]
[1750954659599,2.44741523,2429.0,2428.9,4.03087]
[1750954659906,1.49604,2429.0,2428.9,3.2078]
[1750954660504,0.673,2429.0,2428.9,4.03087]
[1750954660811,0.823,2429.1,2428.9,9.65529791]
[1750954661104,1.52619,2429.2,2428.9,9.65529791]
[1750954661302,0.7032,2429.2,2429.1,0.823]
[1750954661505,1.65359789,2429.2,2429.1,0.823]
[1750954662010,1.49112,2429.4,2429.3,0.82293]
[1750954662209,2.44048338,2429.4,2429.3,4.03073]
[1750954662614,2.44048338,2429.4,2429.3,3.2078]
[1750954663004,1.49112,2429.4,2429.3,3.2078]
[1750954663603,1.49112,2429.4,2429.3,4.03073]
[1750954663803,1.49112,2429.4,2429.3,4.6459]
[1750954664412,1.49112,2429.4,2429.3,3.2078]
[1750954665308,0.823,2429.1,2429.0,8.8078]
[1750954665510,0.82299,2429.2,2429.0,8.8078]
[1750954665711,0.82296,2429.3,2429.2,0.82296]
[1750954666014,0.82296,2429.3,2429.2,3.2078]
[1750954666713,0.82296,2429.3,2429.2,4.5874]
[1750954668319,0.82296,2429.3,2429.2,3.2078]
[1750954668617,0.82297,2429.2,2429.1,6.695]
[1750954668816,0.82307,2428.9,2428.8,3.2078]
[1750954669115,0.82307,2428.9,2428.8,11.2824]
[1750954669616,0.82307,2429.0,2428.9,0.82306]
[1750954669815,0.82307,2429.0,2428.9,1.3295]
[1750954673415,0.82303,2429.1,2429.0,0.82302]
[1750954673616,0.82303,2429.1,2429.0,2.19732]
[1750954673806,0.82303,2429.1,2429.0,1.3743]
[1750954674218,0.82303,2429.1,2429.0,2.19734]
[1750954674719,0.82295,2429.3,2429.2,0.82293]
[1750954675012,0.82289,2429.5,2429.4,0.82289]
[1750954675209,0.8229,2429.4,2429.3,2.19721]
[1750954675408,0.8229,2429.4,2429.3,1.3743]
[1750954675609,0.82293,2429.3,2429.2,3.2078]
[1750954675915,0.82293,2429.3,2429.2,9.8508]
[1750954676420,0.82293,2429.3,2429.2,10.67377]
[1750954677818,0.82293,2429.3,2429.2,9.8508]
[1750954678616,2.05753,2429.1,2428.6,10.47844791]
[1750954678922,0.82312,2428.8,2428.7,6.643]
[1750954682728,1.77863638,2428.8,2428.7,6.643]
[1750954683329,0.82314,2428.7,2428.6,3.2078]
[1750954683528,0.82327,2428.3,2428.2,52.6448]
[1750954683730,0.82327,2428.3,2428.2,59.2878]
[1750954684028,0.82327,2428.3,2428.2,84.6768]
[1750954684924,0.82326,2428.4,2428.3,0.82327]
[1750954685629,1.52332,2428.5,2428.4,0.82324]
[1750954686130,0.82324,2428.4,2428.3,8.69934791]
[1750954686326,0.82327,2428.3,2428.2,85.50008]
[1750954687123,0.82327,2428.3,2428.2,85.50009]
[1750954688034,0.82331,2428.2,2428.1,2.42073798]
[1750954688223,1.78126286,2428.2,2428.1,6.643]
[1750954689223,0.95795286,2428.2,2428.1,7.46634]
[1750954689528,0.7001,2428.5,2428.4,0.82324]
[1750954689732,2.4809073,2428.5,2428.4,0.82324]
[1750954691426,0.82324,2428.4,2428.3,3.2078]
[1750954691631,0.82337,2428.0,2427.9,32.85738]
[1750954691933,0.82337,2428.0,2427.9,6.644]
[1750954692131,0.82337,2428.0,2427.9,32.051]
[1750954692533,0.82337,2428.0,2427.9,32.87441]
[1750954692736,0.82334,2428.2,2427.9,38.49849791]
[1750954692922,0.82329,2428.3,2428.0,3.2078]
[1750954693130,1.52332,2428.5,2428.4,0.82324]
[1750954693422,0.82324,2428.4,2428.3,36.08606]
[1750954693630,1.78048401,2428.4,2428.3,37.49506]
[1750954693834,0.95724401,2428.4,2428.3,37.49506]
[1750954695631,1.78048401,2428.4,2428.3,32.88126]
[1750954695826,0.95724401,2428.4,2428.3,32.88126]
[1750954696028,0.95724401,2428.4,2428.3,36.08906]
[1750954696231,1.78048401,2428.4,2428.3,36.08907]
[1750954696433,1.78048401,2428.4,2428.3,3.2078]
[1750954696733,1.78048401,2428.4,2428.3,28.6168]
[1750954696934,3.13358401,2428.4,2428.3,3.2078]
[1750954697333,2.17634,2428.4,2428.3,3.2078]
[1750954697530,3.13326165,2428.4,2428.3,3.2078]
[1750954698128,0.82334,2428.1,2428.0,28.6268]
[1750954698329,0.82334,2428.1,2428.0,35.2708]
[1750954698529,0.82334,2428.1,2428.0,32.063]
[1750954698727,0.82334,2428.1,2428.0,32.88637]
[1750954700233,0.82334,2428.1,2428.0,32.063]
[1750954700434,0.82334,2428.1,2428.0,32.88637]
[1750954701040,0.82334,2428.1,2428.0,32.063]
[1750954701235,2.05822,2428.3,2427.8,0.82342]
[1750954701427,0.7108,2428.0,2427.8,32.045]
[1750954701632,1.53661,2427.9,2427.8,32.045]
[1750954701834,0.7132,2427.9,2427.8,32.86844]
[1750954702329,0.7132,2427.9,2427.8,39.31593791]
[1750954702534,0.82332,2428.2,2428.1,0.82331]
[1750954702735,1.7899774,2428.2,2428.1,0.82331]
[1750954703640,0.82336,2428.1,2428.0,0.82336]
[1750954703847,0.82339,2428.0,2427.9,0.82339]
[1750954704345,0.82339,2428.0,2427.8,39.89659791]
[1750954704346,0.82341,2427.9,2427.8,32.045]
[1750954704834,0.82344,2427.8,2427.7,3.2078]
[1750954705241,0.82351,2427.6,2427.5,6.648]
[1750954705444,0.82351,2427.6,2427.5,32.051]
[1750954706138,0.82354,2427.5,2427.4,3.2078]
[1750954706536,0.6768,2427.7,2427.4,3.2078]
[1750954706738,0.82354,2427.5,2427.4,4.03135]
[1750954707239,0.82354,2427.5,2427.4,3.2078]
[1750954707540,1.53755,2427.8,2427.7,0.82348]
[1750954707744,2.50457635,2427.8,2427.7,4.03128]
[1750954708041,2.50456635,2427.8,2427.7,4.03128]
[1750954708229,2.50456635,2427.8,2427.7,5.49918]
[1750954708632,1.68112635,2427.8,2427.7,5.49918]
[1750954708834,2.50456635,2427.8,2427.7,5.49918]
[1750954709142,1.68112635,2427.8,2427.7,5.49918]
[1750954709936,0.96702635,2427.8,2427.7,5.49918]
[1750954710750,1.79046635,2427.8,2427.7,5.49918]
[1750954711049,1.79046635,2427.8,2427.7,4.6757]
[1750954711238,1.79046635,2427.8,2427.7,1.4679]
[1750954711841,1.79046635,2427.8,2427.7,12.14818]
[1750954713347,0.96702635,2427.8,2427.7,12.14818]
[1750954713743,2.44382738,2428.3,2428.1,0.82334]
[1750954713744,0.82333,2428.2,2428.1,0.82334]
[1750954713950,1.79080142,2428.2,2428.1,0.82334]
[1750954714445,0.82334,2428.1,2428.0,26.20835]